Cogmind - Beta 9.5 @@@ ROGUE MODE // 2020.04.01 @ 07:21:20 // AFD2020/Player2 Player: Finestep Result: Core destroyed Performance ------------- Evolutions (0) 0 Regions Visited (2) 400 Robots Destroyed (21) 105 Value Destroyed (451) 451 Prototype IDs (0) 0 Alien Tech Used (0) 0 Bonus (210) 210 TOTAL SCORE: 1166 Bonus ------- High Alert Combat Kills 19 Follower Combat Kills 191 Cogmind --------- Core Integrity 0/250 Matter 286/300 Energy 250/250 System Corruption 0% Temperature Cool (0) Movement Treading (180) Ox1 Location -10/Mines Parts ------- > --- POWER (1) -------- Ion Engine > --- PROPULSION (2) --- Light Treads Aluminum Leg > --- UTILITY (2) ------ Large Storage Unit Large Storage Unit > --- WEAPON (2) ------- Light Assault Rifle Light Assault Rifle > --- INVENTORY (16) --- Ion Engine Light Treads Light Treads Light Treads Large Storage Unit Large Storage Unit Targeting Computer Targeting Computer Core Shielding Utility Shielding Light Armor Plating Datajack Mining Claw Peak State ------------ > --- POWER ------------ Ion Engine > --- PROPULSION ------- Wheel Compact Wheel > --- UTILITY ---------- Large Storage Unit Large Storage Unit > --- WEAPON ----------- Small Laser Light Assault Rifle > --- INVENTORY -------- Ion Engine Light Treads Light Treads Light Treads Compact Wheel Large Storage Unit Large Storage Unit Targeting Computer Light Armor Plating Mining Claw [Rating: 8] Favorites ----------- Power Ion Engine Engine Ion Engine Propulsion Compact Wheel Treads Light Treads Leg Aluminum Leg Wheel Compact Wheel Utility Large Storage Unit Storage Large Storage Unit Weapon Light Assault Rifle Energy Gun Small Laser Ballistic Gun Light Assault Rifle Slashing Weapon Mining Claw Build | -11 -10 -10 ------- Run | Scr Mat Min Slots Evolved . | . . . Power . | . . . Propulsion . | . . . Utility . | . . . Weapon . | . . . Parts Attached 18 | 8 4 6 Power 1 | 1 . . Engine 1 | 1 . . Core . | . . . Reactor . | . . . Propulsion 5 | 2 . 3 Treads 1 | . . 1 Leg 1 | . . 1 Wheel 3 | 2 . 1 Hover . | . . . Flight . | . . . Utility 4 | 2 2 . Device . | . . . Storage 4 | 2 2 . Processor . | . . . Hackware . | . . . Protection . | . . . Artifact . | . . . Weapon 8 | 3 2 3 Energy Gun 3 | 2 . 1 Energy Cannon . | . . . Ballistic Gun 4 | 1 1 2 Ballistic Cannon . | . . . Launcher . | . . . Special Weapon . | . . . Impact Weapon . | . . . Slashing Weapon 1 | . 1 . Piercing Weapon . | . . . Special Melee Weapon . | . . . Unidentified Prototypes . | . . . Parts Lost 6 | . . 6 Power . | . . . Propulsion 3 | . . 3 Utility . | . . . Weapon 3 | . . 3 Highest Loss Streak 2 | . . 2 Average Slot Usage (%) 99 | . 100 98 Engine 14 | . 14 14 Treads 3 | . . 12 Wheel 24 | . 28 14 Storage 28 | . 28 28 Energy Gun 11 | . 14 6 Ballistic Gun 15 | . 13 21 Naked Turns . | . . . Heaviest Build 40 | 15 40 40 Greatest Support 26 | 26 26 26 Greatest Overweight (x) 12 | . 1 12 Average Overweight (x) 1 | . . 2 Largest Inventory Capacity 16 | 8 16 16 Average Capacity 14 | 6 14 16 Most Carried 16 | 6 16 16 Average Carried 12 | 3 12 14 Final Capacity 16 | 8 16 16 Final Carried 16 | 6 16 13 Class Distribution -------------------- 100% | Mutant Dominant Class ---------------- Mutant | -10/Materials Mutant | -10/Mines Resources | -11 -10 -10 ----------- Run | Scr Mat Min Matter Collected 465 | 296 85 84 Remotely . | . . . Salvage Created 718 | 119 311 288 Parts 48 | 9 23 16 Haulers Intercepted 2 | . 2 . Recyclers Shooed 3 | 1 1 1 Parts Field Recycled . | . . . Retrieved Matter . | . . . Parts Self-Destructed . | . . . Prevented . | . . . Kills | -11 -10 -10 ------- Run | Scr Mat Min Combat Hostiles Destroyed 13 | . 6 7 Guns 13 | . 6 7 Classes Destroyed 6 | 2 4 . Tunneler 3 | 3 . . Hauler 2 | . 2 . Recycler 2 | 1 . 1 Watcher 1 | . 1 . Swarmer 5 | . 3 2 Grunt 8 | . 3 5 Best Kill Streak 4 | 2 2 4 Combat Bots Only 3 | . 2 3 Max Kills in Single Turn 2 | 1 2 1 Gunslinging 1 | . 1 . Exploded . | . . . Melee . | . . . Uniques/NPCs Destroyed . | . . . Combat | -11 -10 -10 -------- Run | Scr Mat Min Damage Taken 532 | . 123 409 Core 62 | . 21 41 Absorbed by Shields . | . . . Core Remaining (%) 100 | 100 . . Volleys Fired 101 | 17 45 39 Largest 2 | 2 2 2 Hottest 80 | 80 60 60 Shots Fired 164 | 34 65 65 Gun 164 | 34 65 65 Cannon . | . . . Launcher . | . . . Special . | . . . Kinetic 118 | 16 45 57 Thermal 38 | 17 20 1 Explosive . | . . . Electromagnetic 8 | 1 . 7 Robot Hit Streak 11 | 6 10 11 Robot Miss Streak 6 | 4 6 5 Penetration Max . | . . . Secondary Targets 2 | . 1 1 Max Gunslinging Chain 1 | . 1 1 Shots Hit Robots 100 | 21 32 47 Core Hits 38 | 6 15 17 Critical Hits . | . . . Critical Kills . | . . . Critical Parts Destroyed . | . . . Melee Attacks 7 | . 7 . Impact . | . . . Slashing 7 | . 7 . Piercing . | . . . Sneak Attacks . | . . . Combat Hostiles . | . . . Follow-up Attacks . | . . . Damage Inflicted 910 | 164 290 456 Guns 869 | 164 290 415 Cannons . | . . . Explosions 41 | . . 41 Melee . | . . . Ramming . | . . . Kinetic 542 | 50 159 333 Thermal 281 | 99 131 51 Explosive . | . . . Electromagnetic 87 | 15 . 72 Impact . | . . . Slashing . | . . . Piercing . | . . . Highest Corruption . | . . . Average Corruption . | . . . Corruption Purged . | . . . Overload Shots . | . . . Overflow Damage . | . . . Projectiles . | . . . Explosions . | . . . Melee . | . . . Knockbacks . | . . . Impact . | . . . Kinetic . | . . . Secondary . | . . . Self-Inflicted Damage 30 | . . 30 Shots 1 | . . 1 Rammed . | . . . Targets Rammed . | . . . Kicked . | . . . Crushed . | . . . Highest Temperature 97 | 40 40 97 Average Temperature 24 | 22 18 35 Received Heat Transfer 222 | . 24 198 Siege Activations . | . . . Robots Corrupted . | . . . Combat Hostiles . | . . . Parts Fried 2 | . 2 . Impact Corruptions . | . . . Robots Melted . | . . . Combat Hostiles . | . . . Parts Melted 1 | . . 1 Heat Transferred 650 | 225 300 125 Parts Sabotaged . | . . . Parts Stolen . | . . . Parts Stripped . | . . . Power Chain Reactions 1 | . . 1 Missiles Intercepted . | . . . Alert | -11 -10 -10 ------- Run | Scr Mat Min Peak Influence 422 | 20 325 422 Average Influence 166 | 9 154 251 Maximum Alert Level 2 | . 1 2 Low Security (%) 67 | 100 73 41 Level 1 28 | . 26 42 Level 2 3 | . . 15 Level 3 . | . . . Level 4 . | . . . Level 5 . | . . . High Security . | . . . Max Security . | . . . Squads Dispatched 3 | . 3 . Investigation 3 | . 3 . Extermination . | . . . Reinforcement . | . . . Assault . | . . . Garrison . | . . . Intercept . | . . . Construction Impeded . | . . . Haulers Reinforced . | . . . Stealth | -11 -10 -10 --------- Run | Scr Mat Min Distress Signals 2 | . 2 . Communications Jammed . | . . . Distress Signals . | . . . Times Spotted 36 | . 19 17 Peak Tracking Total 5 | . 3 5 Tactical Retreats 3 | . . 3 Traps | -11 -10 -10 ------- Run | Scr Mat Min Traps Triggered 1 | . 1 . Indirectly . | . . . Trap Hack Attempts . | . . . Triggered . | . . . Disarmed . | . . . Reprogrammed . | . . . Reused . | . . . Traps Extracted . | . . . Installed . | . . . Triggered . | . . . Machines | -11 -10 -10 ---------- Run | Scr Mat Min Machines Disabled 5 | . 4 1 Max in Single Turn . | . . . Machines Sabotaged . | . . . Garrisons Compromised . | . . . Overloaded Fab Kills . | . . . Fab Network Shutdowns . | . . . Hacking | -11 -10 -10 --------- Run | Scr Mat Min Machines Accessed 9 | . 9 . Terminals 7 | . 7 . Fabricators . | . . . Repair Stations . | . . . Recycling Units 2 | . 2 . Scanalyzers . | . . . Garrison Access . | . . . Total Hacks 29 | . 29 . Successful 17 | . 17 . Failed 12 | . 12 . Catastrophic . | . . . Database Lockouts . | . . . Manual 16 | . 16 . Terminals 22 | . 22 . Fabricators . | . . . Repair Stations . | . . . Recycling Units 7 | . 7 . Scanalyzers . | . . . Garrison Access . | . . . Terminal Hacks 6 | . 6 . Recycling Unit Index 1 | . 1 . Locate Traps 2 | . 2 . Hauler Manifests 1 | . 1 . Registered Components 1 | . 1 . Zone Layout 1 | . 1 . Fabricator Hacks . | . . . Repair Station Hacks . | . . . Recycling Unit Hacks 3 | . 3 . Retrieve Components 3 | . 3 . Scanalyzer . | . . . Garrison Access Hacks . | . . . Unauthorized Hacks 19 | . 19 . Terminals 6 | . 6 . Track 3 | . 3 . Botnet 2 | . 2 . Operators 1 | . 1 . Fabricators . | . . . Repair Stations . | . . . Recycling Units 2 | . 2 . Tunnel 2 | . 2 . Scanalyzers . | . . . Garrison Access . | . . . Data Cores Recovered . | . . . Used . | . . . Hacking Detections 7 | . 7 . Full Trace Events . | . . . Feedback Events . | . . . Feedback Blocked . | . . . Robot Schematics Acquired . | . . . Robots Built . | . . . Matter . | . . . Time . | . . . Total Robot Build Rating . | . . . Part Schematics Acquired . | . . . Parts Built . | . . . Matter . | . . . Time . | . . . Total Part Build Rating . | . . . Parts Repaired . | . . . Time . | . . . Parts Recycled . | . . . Recycled Matter . | . . . Retrieved Matter . | . . . Retrieved Components 4 | . 4 . Parts Scanalyzed . | . . . Part Schematics Acquired . | . . . Parts Damaged . | . . . Bothacking | -11 -10 -10 ------------ Run | Scr Mat Min Used RIF Installer . | . . . Robots Hacked . | . . . Non-combat . | . . . Combat . | . . . Robot Hacks Applied . | . . . Relay Couplers Released . | . . . Robots Rewired . | . . . Allies Hacked . | . . . Hacks Repelled . | . . . Allies | -11 -10 -10 -------- Run | Scr Mat Min Total Allies 1 | . 1 . Largest Group 1 | . 1 1 Highest-Rated Group 58 | . 57 58 Highest-Rated Ally 58 | . 57 58 Total Orders . | . . . Ally Attacks 40 | . 29 11 Total Damage 1123 | . 358 765 Kills 12 | . 8 4 Allies Corrupted . | . . . Allies Melted . | . . . Intel | -11 -10 -10 ------- Run | Scr Mat Min Robot Analysis Total . | . . . Derelict Logs Recovered 1 | . . 1 Drone Launches . | . . . Drone Recoveries . | . . . Exploration | -11 -10 -10 ------------- Run | Scr Mat Min Turns Passed 1432 | 121 949 362 Spaces Moved 1074 | 62 796 216 Core 2 | 1 . 1 Treads 4 | . . 4 Legs . | . . . Wheels 1068 | 61 796 211 Hover . | . . . Flight . | . . . Fastest Speed 50 | 50 90 100 Average Speed 101 | 89 98 117 Slowest Speed 650 | 90 100 650 Overloaded Moves . | . . . Propulsion Burnouts . | . . . Robots Hopped . | . . . Cave-ins Triggered . | . . . Exploration Rate (%) 51 | 4 93 57 Regions Visited 2 Branch Regions 1 Pre-discovered Areas 2 | . 2 . Known Exits Taken . | . . . Unknown Exits Taken 2 | 1 1 . Scrap Searched . | . . . Spaces Dug 1 | . 1 . Terrain Destroyed 12 | . 1 11 Melee 1 | . 1 . Projectile . | . . . AOE 11 | . . 11 Actions | -11 -10 -10 --------- Run | Scr Mat Min Total 1253 | 92 891 270 Wait 32 | . 24 8 Move 1072 | 61 795 216 Hop . | . . . Pick Up 19 | 6 12 1 Fast Attach 9 | 7 . 2 Attach 4 | . . 4 Detach . | . . . Swap 5 | 1 4 . Drop 4 | . 4 . Fire 101 | 17 45 39 Melee 7 | . 7 . Ram . | . . . Kick . | . . . Crush . | . . . Escape Stasis . | . . . Rewire . | . . . Trap . | . . . Miscellaneous . | . . . Route ------- -11/Scrapyard -10/Materials (discovered 4 exits: [*Mat x3] / [*Min]) -10/Mines (discovered 3 exits: [*Mat x2] / [*Exi]) History --------- Turn | Location | Event 19 | -11/Scrapyard | Discovered new exit (range 15) 122 | -11/Scrapyard | Entered Materials 304 | -10/Materials | Build established: Mutant 397 | -10/Materials | Discovered new exit (range 12) 574 | -10/Materials | Discovered new exit (range 6) 898 | -10/Materials | Discovered new exit (range 16) 929 | -10/Materials | Discovered new exit (range 15) 1071 | -10/Materials | Entered Mines 1071 | -10/Mines | Accompanied by 1 ally 1089 | -10/Mines | Received a Rocket Launcher from a helpful Derelict 1173 | -10/Mines | Deemed a non-threat by the Exiles lab entrance 1173 | -10/Mines | Discovered new exit (range 5) 1247 | -10/Mines | Discovered new exit (range 5) 1300 | -10/Mines | Discovered new exit (range 13) 1345 | -10/Mines | Core integrity fell below 50% 1410 | -10/Mines | Core integrity fell below 20% 1433 | -10/Mines | Core destroyed Last Messages --------------- 01354_ R-06 Scavenger destroyed. 01360_ Acquired 16 matter. 01368_ G-34 Mercenary destroyed. 01370_ Acquired 4 matter. 01372_ Player 2 attaches Lgt. Ion Engine. 01374_ S-10 Pest destroyed. 01374_ Switching to secondary target: G-47 Trooper. 01376_ Acquired 2 matter. 01378_ Lgt. Nuclear Core melted. 01378_ G-47 Trooper destroyed. 01379_ Acquired 2 matter. 01398_ R-06 Scavenger collects Sml. Laser. 01401_ Acquired 2 matter. 01403_ R-06 Scavenger collects Aluminum Leg. 01407_ R-06 Scavenger collects Lgt. Ion Engine. 01413_ Com. Wheel destroyed. 01413_ G-34 Mercenary destroyed. 01417_ K-01 Serf collects debris. 01422_ Acquired Aluminum Leg. 01425_ K-01 Serf collects debris. Map ----- +----------------------------------------------------+ | ### #????????????????????????? | | ## #????????????????????????? | | ### # #????????????????????????? | | ??## #### ## #????????????????????????? | | ???# #??######## ### #????????????????????????? | | #??# #?????????#####?# #????????????????????????? | | #### #???????????????# #????????????????????????? | | #??????????????## #????????????????????????? | | #### ?????????????## ###??????????????????????? | | #??# #???#????????## ##?????????????????????? | | #??# #???# #??????# #######???????????????? | | ##?# #??## ?????# ???????????? | | ##? ???# ##### #########??????????????? | | #? #??# =%! # ##??????????????????????? | | ##? #???# = % ##########??????????????? | | #?? #???## = #??????????????? | | #?? #????# < #?????????????? | | #?# #????????# ##### #????????????? | | #?# #????????##### #????? ?????????????? | | #### #????????????## ##???????# ??????????????? | | ?## ##????????????### ######????????????????????? | | ## #######??????# #=# ## ##???????????????????? | | # #??????# " " # #???????????????????? | | #???????????### " # ##??????????????????? | | #??????# ## ;## ##?????????????????? | | ##??????# t @ @ ####??????????????? | | ## #???????# ####### * ##?????????????? | | ?## ##???????# """ ??????##% ####??????????? | | ??# #????????# """????????# #??????????? | | ?## #????????? """????????# ### ???? | | ?# #??????????? ?????????# ####???? ?????? | | ?# ##??????????????????????#% ##?????????????????? | | ?# #??????????????????????## #??????????????????? | | ?# #?????????????????????## ########???????????? | | ?# #??????????############ ???????? | | ?# #??????# =!%[ * % ???????? | | ?# #?????????# ########## ###########???????? | | ?# #????????????????????# ##?????????????????? | | ?# #????????????????????## #??????????????????? | | ?# #??????????????####???### #?????????????????? | | ## ###???????????## ##????## ##?????????????????? | | ######### ### #??????##??????????????????? | | "" ##?????????????????????????? | | ##### ##### #?????????????????????????? | | #???# #???# #?????????????????????????? | | ###???# #??## #?????????????????????????? | | #???# #### ##?????????????????????????? | | #####?# ##??????????????????????????? | | ### ##### ##???????????????????????????? | | # ## #???####????????????????????????????? | +----------------------------------------------------+ Best States ------------- Heat Dissipation 25 Energy Generation 10 Energy Capacity 250 Matter Stores 300 Matter Capacity 300 Sight Range 16 Terrain Scan Density 10 Evasion (%) 42 Recoil Reduction 1 Item Schematics ----------------- None Robot Schematics ------------------ None Fabricated ------------ Nothing Alien Tech Used ----------------- None Achievements -------------- None Challenges ------------ None Game ------ Seed GreatTrapInjector Manual? 0 Play Time 00:12:00 Cumulative 360.9 hours Start 2020.04.01 @ 07:07:26 End 2020.04.01 @ 07:21:20 Sessions 1 Manual Loads 0 Difficulty Rogue Special Mode AFD2020/Player2 Game No. 253 Rogue 253 Adventurer 0 Explorer 0 Win Type - Total 4 Types 4/0/0/0/0/0/0 Lore% 81 Gallery% 84 Achievement% 63 Wizard Run 0 Options --------- ASCII 0 Keyboard 0 Movement Mouse Keybinds 1 Fullscreen 2 Font 24/Smallcaps Map View 76x50 Tactical HUD 1 Map Filters NONE Filters NONE Steam 1 RUN: 5829c806-c8b7-4619-9c34-993ee42486ba